{"text_format":"1","workbook":"xlsx","n_sheets":1,"sheets":["12音技法"],"not_rendered":{"charts":1,"images":3,"macros":1,"external_links":0,"defined_names":0,"comments":0,"pivot_tables":0},"unopened":[],"bounds":{"document_bytes":16777216,"sheet_cells":100000,"rows_first":2000,"rows_last":500,"rows_between":2000,"halvings":0,"cell_chars":16384,"cell_head_chars":4096},"cells_cut":0,"cells_raw":0,"read":"whole","date_system":"1900"}

{"sheet":"12音技法","index":0,"n_rows":25,"n_cols":19,"rows_kept":25,"cut":false,"hidden":false,"merged":[]}
[]
[]
[]
[]
[]
[]
[]
[]
[]
[]
[]
[null,null,null,null,null,null,null,null,null,null,null,null,null,null,null,null,null,null,1]
[null,null,null,null,null,null,null,null,null,"No","note","No",null,"No","-","♯","♭",null,{"$f":"COUNTIF($S$14:$S$25,S12)","v":6}]
[null,null,null,null,null,null,null,null,null,0,"Ｆ",0,null,{"$f":"RANDBETWEEN(0,11)","v":1},1.5,null,null,null,{"$f":"COUNTIF($N$14:$N$25,J14)","v":0}]
[null,null,null,null,null,null,null,null,null,1,"Ｆ♯",1,null,{"$f":"RANDBETWEEN(0,11)","v":4},null,1.5,null,null,{"$f":"COUNTIF($N$14:$N$25,J15)","v":3}]
[null,null,null,null,null,null,null,null,null,2,"Ｇ",2,null,11,2,null,null,null,1]
[null,null,null,null,null,null,null,null,null,3,"Ａ♭",3,null,5,null,null,2.5,null,0]
[null,null,null,null,null,null,null,null,null,4,"Ａ",4,null,7,2.5,null,null,null,1]
[null,null,null,null,null,null,null,null,null,5,"Ｂ♭",5,null,8,null,null,3,null,1]
[null,null,null,null,null,null,null,null,null,6,"Ｂ",6,null,9,3,null,null,null,0]
[null,null,null,null,null,null,null,null,null,7,"Ｃ",7,null,1,3.5,null,null,null,1]
[null,null,null,null,null,null,null,null,null,8,"Ｃ♯",8,null,2,null,3.5,null,null,1]
[null,null,null,null,null,null,null,null,null,9,"Ｄ",9,null,11,4,null,null,null,1]
[null,null,null,null,null,null,null,null,null,10,"Ｅ♭",10,null,1,null,null,4.5,null,0]
[null,null,null,null,null,null,null,null,null,11,"Ｅ",11,null,11,4.5,null,null,null,3]